[Event "XX Gran Hotel Bali-B 2023"]
[Site "Benidorm"]
[Date "2023.12.04"]
[Round "4.8"]
[White "Bethencourt Hernandez, Alberto"]
[Black "Lorenzo Calvo, Damian Angel"]
[Result "0-1"]
[ECO "B31"]
[WhiteElo "1869"]
[BlackElo "1947"]
[Annotator "NA RC"]
[PlyCount "96"]
[EventDate "2023.12.02"]
[EventType "swiss"]
[EventCountry "ESP"]
[SourceTitle "playchess.com"]
[Source "ChessBase"]
[SourceQuality "1"]
[TimeControl "5400+30"]

1. e4 {[%emt 0:00:05]} c5 {[%emt 0:00:11]} 2. Nf3 {[%emt 0:00:19]} Nc6 {[%emt 0:00:27]} 3. Bb5 {[%emt 0:00:41]} g6 {[%emt 0:00:54]} 4. O-O {[%emt 0:00:33]} Bg7 {[%emt 0:01:03]} 5. Re1 {[%emt 0:01:02]} e5 {[%emt 0:01:54]} 6. Bxc6 {[%emt 0:01:09]} dxc6 {[%emt 0:02:01]} 7. d3 {[%emt 0:00:47]} Qd6 {[%emt 0:03:28]} 8. a4 {[%emt 0:02:38]} Nf6 {[%emt 0:03:41]} 9. Na3 {[%emt 0:00:28]} Be6 {[%emt 0:03:05]} 10. Ng5 {[%emt 0:04:06]} O-O {[%emt 0:02:09]} 11. Nxe6 {[%emt 0:04:00]} Qxe6 {[%emt 0:00:02]} 12. Nc4 {[%emt 0:02:32]} b6 {[%emt 0:08:38]} 13. Qe2 {[%emt 0:08:29]} Rae8 {[%emt 0:05:07]} 14. f3 {[%emt 0:04:01]} Nd7 {[%emt 0:02:19]} 15. Be3 {[%emt 0:01:44]} f5 {[%emt 0:03:00]} 16. Bf2 {[%emt 0:00:14]} f4 {[%emt 0:01:44]} 17. Nd2 {[%emt 0:04:14]} Rf7 {[%emt 0:03:29]} 18. a5 {[%emt 0:01:30]} Bf8 {[%emt 0:02:47]} 19. axb6 {[%emt 0:01:59]} axb6 {[%emt 0:00:03]} 20. Ra6 {[%emt 0:01:42]} g5 {[%emt 0:03:44]} 21. Nc4 {[%emt 0:02:45]} b5 {[%emt 0:02:51]} 22. Na5 {[%emt 0:04:57]} Nb8 {[%emt 0:01:00]} 23. Ra8 {[%emt 0:01:54]} h5 {[%emt 0:02:28]} 24. Nb3 {[%emt 0:02:56]} Nd7 {[%emt 0:01:02]} 25. Rxe8 {[%emt 0:01:45]} Qxe8 {[%emt 0:00:02]} 26. Ra1 {[%emt 0:00:12]} Rg7 {[%emt 0:02:51]} 27. c3 {[%emt 0:11:09]} g4 {[%emt 0:02:44]} 28. d4 {[%emt 0:02:02]} c4 {[%emt 0:11:25]} 29. Nd2 {[%emt 0:02:45]} Qg6 {[%emt 0:03:03]} 30. Ra6 {[%emt 0:02:50]} Qd6 {[%emt 0:06:10]} 31. d5 {[%emt 0:03:39]} Nb8 {[%emt 0:00:11]} 32. Rb6 {[%emt 0:00:12]} g3 {[%emt 0:05:50]} 33. hxg3 {[%emt 0:00:37]} fxg3 {[%emt 0:00:23]} 34. Be3 {[%emt 0:00:06]} Ra7 {[%emt 0:00:32]} 35. dxc6 {[%emt 0:01:38]} Nxc6 {[%emt 0:01:33]} 36. Rxb5 {[%emt 0:00:57]} Ra1+ {[%emt 0:01:12]} 37. Nf1 {[%emt 0:00:07]} Na5 {[%emt 0:01:42]} 38. Rb6 {[%emt 0:04:16]} Qd3 {[%emt 0:03:34]} 39. Qxd3 {[%emt 0:01:04]} cxd3 {[%emt 0:00:01]} 40. Rg6+ {[%emt 0:02:22]} Kf7 {[%emt 0:00:01]} 41. Rxg3 {[%emt 0:00:08]} Nc4 {[%emt 0:01:11]} 42. Bg5 {[%emt 0:05:25]} d2 {[%emt 0:00:18]} 43. Bxd2 {[%emt 0:00:05]} Nxd2 {[%emt 0:00:04]} 44. Rg5 {[%emt 0:00:16]} Rxf1+ {[%emt 0:00:56]} 45. Kh2 {[%emt 0:00:06]} h4 {[%emt 0:01:07]} 46. Kh3 {[%emt 0:01:37]} Bg7 {[%emt 0:00:30]} 47. Rf5+ {[%emt 0:02:15]} Bf6 {[%emt 0:00:22]} 48. Kg4 {[%emt 0:02:26]} Nc4 {[%emt 0:00:28]} 0-1

[Event "XX Gran Hotel Bali-B 2023"]
[Site "Benidorm"]
[Date "2023.12.04"]
[Round "4.9"]
[White "Fabre Massana, Miquel"]
[Black "Romera Carrion, Ruben"]
[Result "1-0"]
[ECO "B28"]
[WhiteElo "1982"]
[BlackElo "1883"]
[Annotator "NA RC"]
[PlyCount "89"]
[EventDate "2023.12.02"]
[EventType "swiss"]
[EventCountry "ESP"]
[SourceTitle "playchess.com"]
[Source "ChessBase"]
[SourceQuality "1"]
[TimeControl "5400+30"]

1. e4 {[%emt 0:00:03]} c5 {[%emt 0:17:56]} 2. Nf3 {[%emt 0:00:33]} a6 {[%emt 0:01:27]} 3. c4 {[%emt 0:01:20]} Nc6 {[%emt 0:03:25]} 4. d4 {[%emt 0:00:35]} cxd4 {[%emt 0:00:06]} 5. Nxd4 {[%emt 0:00:17]} Nf6 {[%emt 0:00:50]} 6. Nc3 {[%emt 0:01:01]} e5 {[%emt 0:00:31]} 7. Nc2 {[%emt 0:01:49]} h6 {[%emt 0:03:25]} 8. Be3 {[%emt 0:03:20]} Be7 {[%emt 0:03:04]} 9. Nd5 {[%emt 0:04:24]} Nxd5 {[%emt 0:02:48]} 10. cxd5 {[%emt 0:01:28]} Qa5+ {[%emt 0:06:11]} 11. Bd2 {[%emt 0:06:44]} Nb4 {[%emt 0:02:27]} 12. Ne3 {[%emt 0:04:00]} Qb6 {[%emt 0:07:34]} 13. a3 {[%emt 0:01:00]} Qd4 {[%emt 0:00:23]} 14. Bxb4 {[%emt 0:02:01]} Bxb4+ {[%emt 0:00:16]} 15. axb4 {[%emt 0:00:38]} Qxb4+ {[%emt 0:00:02]} 16. Qd2 {[%emt 0:01:03]} Qxe4 {[%emt 0:00:02]} 17. Qd3 {[%emt 0:03:11]} Qb4+ {[%emt 0:03:16]} 18. Qc3 {[%emt 0:00:33]} Qe7 {[%emt 0:00:57]} 19. Qa3 {[%emt 0:06:18]} Qxa3 {[%emt 0:01:40]} 20. Rxa3 {[%emt 0:00:31]} d6 {[%emt 0:00:02]} 21. Bd3 {[%emt 0:02:57]} Ke7 {[%emt 0:01:37]} 22. Kd2 {[%emt 0:01:35]} Bd7 {[%emt 0:01:34]} 23. Rc1 {[%emt 0:02:29]} g6 {[%emt 0:02:18]} 24. Rac3 {[%emt 0:00:55]} f5 {[%emt 0:02:08]} 25. Nc4 {[%emt 0:01:20]} Rac8 {[%emt 0:04:13]} 26. Na5 {[%emt 0:05:26]} Rxc3 {[%emt 0:02:34]} 27. Rxc3 {[%emt 0:00:18]} e4 {[%emt 0:00:26]} 28. Be2 {[%emt 0:00:37]} b6 {[%emt 0:03:03]} 29. Nc6+ {[%emt 0:00:38]} Kf6 {[%emt 0:00:11]} 30. Bxa6 {[%emt 0:01:21]} Ra8 {[%emt 0:01:33]} 31. Ra3 {[%emt 0:00:48]} Re8 {[%emt 0:00:24]} 32. Bb5 {[%emt 0:01:35]} f4 {[%emt 0:00:12]} 33. Nd4 {[%emt 0:03:16]} Bxb5 {[%emt 0:00:29]} 34. Nxb5 {[%emt 0:00:03]} Ke5 {[%emt 0:00:06]} 35. Ra4 {[%emt 0:02:17]} e3+ {[%emt 0:00:59]} 36. fxe3 {[%emt 0:04:19]} fxe3+ {[%emt 0:00:06]} 37. Ke2 {[%emt 0:01:02]} Rf8 {[%emt 0:00:12]} 38. Kxe3 {[%emt 0:00:18]} Kxd5 {[%emt 0:00:04]} 39. Rd4+ {[%emt 0:01:36]} Kc5 {[%emt 0:01:05]} 40. Nxd6 {[%emt 0:36:51]} Rf1 {[%emt 0:00:02]} 41. Ne4+ {[%emt 0:00:00]} Kb5 {[%emt 0:00:02]} 42. Rd6 {[%emt 0:00:00]} Re1+ {[%emt 0:01:32]} 43. Kf3 {[%emt 0:00:00]} Rh1 {[%emt 0:00:55]} 44. h3 {[%emt 0:00:00]} Rf1+ {[%emt 0:00:10]} 45. Ke2 {[%emt 0:00:00]} 1-0

[Event "XX Gran Hotel Bali-B 2023"]
[Site "Benidorm"]
[Date "2023.12.04"]
[Round "4.10"]
[White "Tudela Gonzalez, Victor"]
[Black "Conde Chamizo, Pablo"]
[Result "1/2-1/2"]
[ECO "D36"]
[WhiteElo "1957"]
[BlackElo "1905"]
[Annotator "NA RC"]
[PlyCount "72"]
[EventDate "2023.12.02"]
[EventType "swiss"]
[EventCountry "ESP"]
[SourceTitle "playchess.com"]
[Source "ChessBase"]
[SourceQuality "1"]
[TimeControl "5400+30"]

1. d4 {[%emt 0:00:24]} Nf6 {[%emt 1:31:00]} 2. c4 {[%emt 0:00:41]} e6 {[%emt 0:00:00]} 3. Nc3 {[%emt 0:00:41]} d5 {[%emt 0:00:00]} 4. cxd5 {[%emt 0:01:13]} exd5 {[%emt 0:00:00]} 5. Bg5 {[%emt 0:00:11]} Nbd7 {[%emt 0:00:00]} 6. e3 {[%emt 0:00:49]} Be7 {[%emt 0:00:00]} 7. Bd3 {[%emt 0:01:10]} c6 {[%emt 0:00:00]} 8. Qc2 {[%emt 0:01:32]} O-O {[%emt 0:00:00]} 9. h3 {[%emt 0:01:29]} Re8 {[%emt 0:00:00]} 10. Nf3 {[%emt 0:00:26]} Ne4 {[%emt 0:00:00]} 11. Bxe4 {[%emt 0:04:43]} Bxg5 {[%emt 0:00:00]} 12. Bxh7+ {[%emt 0:00:41]} Kh8 {[%emt 0:00:00]} 13. h4 {[%emt 0:04:46]} Bh6 {[%emt 0:00:00]} 14. Bd3 {[%emt 0:07:05]} Nf6 {[%emt 0:00:00]} 15. Ne5 {[%emt 0:01:21]} Kg8 {[%emt 0:00:00]} 16. O-O-O {[%emt 0:08:54]} c5 {[%emt 0:00:00]} 17. Nf3 {[%emt 0:07:50]} c4 {[%emt 0:00:00]} 18. Bf5 {[%emt 0:02:55]} Ng4 {[%emt 0:00:00]} 19. Bxg4 {[%emt 0:10:33]} Bxg4 {[%emt 0:00:00]} 20. Ne5 {[%emt 0:01:04]} Bxd1 {[%emt 0:00:00]} 21. Qxd1 {[%emt 0:00:05]} Rxe5 {[%emt 0:00:00]} 22. dxe5 {[%emt 0:01:15]} d4 {[%emt 0:00:00]} 23. Ne2 {[%emt 0:03:33]} dxe3 {[%emt 0:00:00]} 24. Qxd8+ {[%emt 0:00:42]} Rxd8 {[%emt 0:00:00]} 25. f4 {[%emt 0:38:57]} Rd2 {[%emt 0:00:00]} 26. Re1 {[%emt 0:00:00]} f6 {[%emt 0:00:00]} 27. g4 {[%emt 0:00:00]} g5 {[%emt 0:00:00]} 28. hxg5 {[%emt 0:00:00]} fxg5 {[%emt 0:00:00]} 29. f5 {[%emt 0:00:00]} Bf8 {[%emt 0:00:00]} 30. Ng3 {[%emt 0:00:00]} c3 {[%emt 0:00:00]} 31. bxc3 {[%emt 0:00:00]} Ba3+ {[%emt 0:00:00]} 32. Kb1 {[%emt 0:00:00]} Rb2+ {[%emt 0:00:00]} 33. Ka1 {[%emt 0:00:00]} Rb5 {[%emt 0:00:00]} 34. Rxe3 {[%emt 0:00:00]} Bb2+ {[%emt 0:00:00]} 35. Kb1 {[%emt 0:00:00]} Bxc3+ {[%emt 0:00:00]} 36. Kc2 {[%emt 0:00:00]} Bxe5 {[%emt 0:00:00]} 1/2-1/2

[Event "XX Gran Hotel Bali-B 2023"]
[Site "Benidorm"]
[Date "2023.12.04"]
[Round "4.11"]
[White "Rojas Fernandez, Andres"]
[Black "Navarro Rico, Lluis"]
[Result "0-1"]
[ECO "B24"]
[WhiteElo "1831"]
[BlackElo "1937"]
[Annotator "NA"]
[PlyCount "132"]
[EventDate "2023.12.02"]
[EventType "swiss"]
[EventCountry "ESP"]
[SourceTitle "playchess.com"]
[Source "ChessBase"]
[SourceQuality "1"]
[TimeControl "5400+30"]

1. e4 {[%emt 0:00:30]} c5 {[%emt 0:17:03]} 2. Nc3 {[%emt 0:00:00]} e6 {[%emt 0:01:23]} 3. g3 {[%emt 0:00:00]} Nc6 {[%emt 0:01:17]} 4. Bg2 {[%emt 0:00:08]} Nge7 {[%emt 0:03:26]} 5. d3 {[%emt 0:00:54]} Nd4 {[%emt 0:01:06]} 6. Nge2 {[%emt 0:04:28]} Nec6 {[%emt 0:00:13]} 7. Nxd4 {[%emt 0:01:39]} cxd4 {[%emt 0:06:24]} 8. Ne2 {[%emt 0:00:11]} Bc5 {[%emt 0:00:41]} 9. O-O {[%emt 0:05:25]} O-O {[%emt 0:02:09]} 10. f4 {[%emt 0:01:13]} f5 {[%emt 0:00:27]} 11. Kh1 {[%emt 0:00:14]} b5 {[%emt 0:01:31]} 12. c3 {[%emt 0:06:10]} Qb6 {[%emt 0:00:34]} 13. cxd4 {[%emt 0:01:32]} Bxd4 {[%emt 0:01:03]} 14. Nxd4 {[%emt 0:04:33]} Qxd4 {[%emt 0:00:05]} 15. Qe2 {[%emt 0:01:22]} Qd6 {[%emt 0:04:48]} 16. e5 {[%emt 0:06:16]} Qc7 {[%emt 0:00:53]} 17. Be3 {[%emt 0:00:34]} Bb7 {[%emt 0:02:21]} 18. Rfc1 {[%emt 0:10:43]} Rfc8 {[%emt 0:00:33]} 19. Rc2 {[%emt 0:12:37]} Qa5 {[%emt 0:08:29]} 20. b3 {[%emt 0:01:35]} Qa6 {[%emt 0:08:27]} 21. Bc5 {[%emt 0:02:11]} Na5 {[%emt 0:03:36]} 22. Rac1 {[%emt 0:01:59]} Bc6 {[%emt 0:01:11]} 23. d4 {[%emt 0:05:31]} Qb7 {[%emt 0:03:29]} 24. Qd2 {[%emt 0:08:56]} Bxg2+ {[%emt 0:01:49]} 25. Qxg2 {[%emt 0:00:07]} Kf7 {[%emt 0:00:35]} 26. Qxb7 {[%emt 0:01:33]} Nxb7 {[%emt 0:00:04]} 27. b4 {[%emt 0:09:16]} Rc6 {[%emt 0:04:40]} 28. Rd2 {[%emt 0:01:06]} Rac8 {[%emt 0:02:43]} 29. Rcd1 {[%emt 0:01:34]} Ra6 {[%emt 0:05:53]} 30. h3 {[%emt 0:03:12]} Ra3 {[%emt 0:05:26]} 31. Kg2 {[%emt 0:00:30]} h5 {[%emt 0:01:39]} 32. Rf1 {[%emt 0:00:05]} Rc6 {[%emt 0:00:59]} 33. Rff2 {[%emt 0:04:04]} Ke8 {[%emt 0:01:59]} 34. d5 {[%emt 0:01:55]} exd5 {[%emt 0:00:32]} 35. Rxd5 {[%emt 0:00:02]} Rg6 {[%emt 0:00:45]} 36. Rf3 {[%emt 0:02:04]} Rxa2+ {[%emt 0:00:34]} 37. Bf2 {[%emt 0:00:47]} a6 {[%emt 0:01:05]} 38. Rfd3 {[%emt 0:01:10]} Rc6 {[%emt 0:06:31]} 39. Kf3 {[%emt 0:00:12]} Rcc2 {[%emt 0:01:11]} 40. Bb6 {[%emt 0:00:13]} Rc6 {[%emt 0:01:15]} 41. Be3 {[%emt 0:00:20]} d6 {[%emt 0:01:00]} 42. exd6 {[%emt 0:00:14]} Kd7 {[%emt 0:00:03]} 43. Rxf5 {[%emt 0:00:23]} Rxd6 {[%emt 0:00:13]} 44. Rc3 {[%emt 0:01:14]} Nd8 {[%emt 0:00:28]} 45. Rxh5 {[%emt 0:00:40]} g6 {[%emt 0:01:15]} 46. Rh7+ {[%emt 0:00:18]} Ke6 {[%emt 0:00:04]} 47. Bc5 {[%emt 0:00:10]} Rdd2 {[%emt 0:01:24]} 48. Re3+ {[%emt 0:00:36]} Kd5 {[%emt 0:00:01]} 49. Rg7 {[%emt 0:01:56]} a5 {[%emt 0:00:49]} 50. Rxg6 {[%emt 0:00:24]} a4 {[%emt 0:00:37]} 51. Rc3 {[%emt 0:01:27]} Ne6 {[%emt 0:00:21]} 52. f5 {[%emt 0:00:23]} Nd4+ {[%emt 0:00:44]} 53. Bxd4 {[%emt 0:00:52]} Kxd4 {[%emt 0:00:01]} 54. Rc5 {[%emt 0:00:01]} Rd3+ {[%emt 0:00:18]} 55. Kf4 {[%emt 0:00:06]} Rf2+ {[%emt 0:00:41]} 56. Kg4 {[%emt 0:00:02]} Ke3 {[%emt 0:01:09]} 57. Rxb5 {[%emt 0:00:57]} Rd4+ {[%emt 0:00:02]} 58. Kg5 {[%emt 0:00:09]} Kf3 {[%emt 0:00:17]} 59. Kh6 {[%emt 0:00:21]} a3 {[%emt 0:00:21]} 60. Ra5 {[%emt 0:00:34]} a2 {[%emt 0:00:11]} 61. Rga6 {[%emt 0:03:22]} Kxg3 {[%emt 0:00:34]} 62. Ra3+ {[%emt 0:00:00]} Kh4 {[%emt 0:00:11]} 63. Rxa2 {[%emt 0:00:00]} Rxf5 {[%emt 0:00:19]} 64. R6a5 {[%emt 0:00:54]} Rf6+ {[%emt 0:01:23]} 65. Kg7 {[%emt 0:00:05]} Rb6 {[%emt 0:00:03]} 66. b5 {[%emt 0:00:42]} Rd7+ {[%emt 0:00:10]} 0-1

[Event "XX Gran Hotel Bali-B 2023"]
[Site "Benidorm"]
[Date "2023.12.04"]
[Round "4.12"]
[White "Medina Romero, Jose"]
[Black "Perez Tomas, Juan Manuel"]
[Result "1-0"]
[ECO "E14"]
[WhiteElo "1963"]
[BlackElo "1871"]
[Annotator "NA RC"]
[PlyCount "35"]
[EventDate "2023.12.02"]
[EventType "swiss"]
[EventCountry "ESP"]
[SourceTitle "playchess.com"]
[Source "ChessBase"]
[SourceQuality "1"]
[TimeControl "5400+30"]

1. d4 {[%emt 0:00:02]} d5 {[%emt 0:00:31]} 2. Nf3 {[%emt 0:00:04]} e6 {[%emt 0:00:17]} 3. e3 {[%emt 0:03:33]} Nf6 {[%emt 0:01:11]} 4. Bd3 {[%emt 0:00:12]} b6 {[%emt 0:01:26]} 5. O-O {[%emt 0:02:26]} Bb7 {[%emt 0:00:32]} 6. c4 {[%emt 0:00:35]} c5 {[%emt 0:02:18]} 7. cxd5 {[%emt 0:01:06]} Nxd5 {[%emt 0:06:52]} 8. Nc3 {[%emt 0:03:51]} cxd4 {[%emt 0:08:50]} 9. Nxd5 {[%emt 0:03:55]} Qxd5 {[%emt 0:00:21]} 10. e4 {[%emt 1:19:46]} Qd8 {[%emt 0:14:24]} 11. Bb5+ {[%emt 0:00:00]} Bc6 {[%emt 0:02:32]} 12. Nxd4 {[%emt 0:00:00]} Bd7 {[%emt 0:01:01]} 13. Qg4 {[%emt 0:00:00]} Qf6 {[%emt 0:12:40]} 14. e5 {[%emt 0:00:00]} Qxe5 {[%emt 0:04:11]} 15. Qf3 {[%emt 0:00:00]} Bd6 {[%emt 0:05:28]} 16. Bxd7+ {[%emt 0:00:00]} Nxd7 {[%emt 0:00:33]} 17. Qxa8+ {[%emt 0:00:00]} Ke7 {[%emt 0:00:26]} 18. Nc6+ {[%emt 0:04:00]} 1-0

[Event "XX Gran Hotel Bali-B 2023"]
[Site "Benidorm"]
[Date "2023.12.04"]
[Round "5.2"]
[White "Lloret Climent, Miguel"]
[Black "Vladut, Matei"]
[Result "0-1"]
[ECO "A35"]
[WhiteElo "1954"]
[BlackElo "1989"]
[Annotator "NA"]
[PlyCount "78"]
[EventDate "2023.12.02"]
[EventType "swiss"]
[EventCountry "ESP"]
[SourceTitle "playchess.com"]
[Source "ChessBase"]
[SourceQuality "1"]
[TimeControl "5400+30"]

1. d4 {[%emt 0:00:04]} g6 {[%emt 0:03:40]} 2. c4 {[%emt 0:00:38]} Bg7 {[%emt 0:00:03]} 3. Nf3 {[%emt 0:00:30]} c5 {[%emt 0:00:14]} 4. Nc3 {[%emt 0:02:38]} cxd4 {[%emt 0:00:05]} 5. Nxd4 {[%emt 0:00:16]} Nc6 {[%emt 0:00:02]} 6. e3 {[%emt 0:03:18]} Nf6 {[%emt 0:00:07]} 7. Be2 {[%emt 0:01:24]} Nxd4 {[%emt 0:00:07]} 8. exd4 {[%emt 0:00:53]} d5 {[%emt 0:00:05]} 9. c5 {[%emt 0:06:16]} O-O {[%emt 0:00:24]} 10. Bf3 {[%emt 0:01:22]} b6 {[%emt 0:00:21]} 11. cxb6 {[%emt 0:03:48]} Qxb6 {[%emt 0:01:12]} 12. O-O {[%emt 0:00:26]} e6 {[%emt 0:00:11]} 13. b3 {[%emt 0:01:09]} Ba6 {[%emt 0:08:30]} 14. Re1 {[%emt 0:00:40]} Nd7 {[%emt 0:00:54]} 15. Be3 {[%emt 0:01:41]} Rfc8 {[%emt 0:00:24]} 16. Na4 {[%emt 0:05:29]} Qa5 {[%emt 0:01:39]} 17. Be2 {[%emt 0:03:21]} Rc6 {[%emt 0:02:30]} 18. Bxa6 {[%emt 0:02:43]} Qxa6 {[%emt 0:00:50]} 19. Qd2 {[%emt 0:02:41]} Rac8 {[%emt 0:09:03]} 20. Rac1 {[%emt 0:01:42]} h5 {[%emt 0:21:41]} 21. h3 {[%emt 0:04:13]} R8c7 {[%emt 0:14:23]} 22. Rxc6 {[%emt 0:05:27]} Rxc6 {[%emt 0:00:03]} 23. Rc1 {[%emt 0:00:45]} Nb8 {[%emt 0:09:06]} 24. Nc5 {[%emt 0:05:58]} Qa3 {[%emt 0:03:34]} 25. b4 {[%emt 0:01:50]} Bf8 {[%emt 0:01:21]} 26. Rb1 {[%emt 0:04:37]} Bxc5 {[%emt 0:00:31]} 27. dxc5 {[%emt 0:01:53]} a6 {[%emt 0:00:26]} 28. Bd4 {[%emt 0:01:07]} Nd7 {[%emt 0:00:31]} 29. Qg5 {[%emt 0:06:42]} Qd3 {[%emt 0:04:24]} 30. Qd8+ {[%emt 0:00:10]} Nf8 {[%emt 0:00:04]} 31. Qf6 {[%emt 0:00:12]} Qxb1+ {[%emt 0:00:14]} 32. Kh2 {[%emt 0:00:29]} e5 {[%emt 0:00:16]} 33. Qxe5 {[%emt 0:00:10]} f6 {[%emt 0:00:12]} 34. Qxd5+ {[%emt 0:00:45]} Re6 {[%emt 0:00:01]} 35. c6 {[%emt 0:06:39]} Qe4 {[%emt 0:01:53]} 36. Qxe4 {[%emt 0:03:32]} Rxe4 {[%emt 0:00:03]} 37. c7 {[%emt 0:00:29]} Re8 {[%emt 0:00:14]} 38. Bxf6 {[%emt 0:00:07]} Rc8 {[%emt 0:00:14]} 39. Be5 {[%emt 0:02:06]} Ne6 {[%emt 0:00:07]} 0-1

[Event "XX Gran Hotel Bali-B 2023"]
[Site "Benidorm"]
[Date "2023.12.04"]
[Round "5.3"]
[White "Lorenzo Calvo, Damian Angel"]
[Black "Fabre Massana, Miquel"]
[Result "1/2-1/2"]
[ECO "E06"]
[WhiteElo "1947"]
[BlackElo "1982"]
[Annotator "NA"]
[PlyCount "34"]
[EventDate "2023.12.02"]
[EventType "swiss"]
[EventCountry "ESP"]
[SourceTitle "playchess.com"]
[Source "ChessBase"]
[SourceQuality "1"]
[TimeControl "5400+30"]

1. d4 {[%emt 0:00:07]} d5 {[%emt 0:00:17]} 2. c4 {[%emt 0:00:21]} c6 {[%emt 0:00:02]} 3. Nf3 {[%emt 0:00:16]} e6 {[%emt 0:00:17]} 4. g3 {[%emt 0:01:01]} dxc4 {[%emt 0:02:45]} 5. Bg2 {[%emt 0:00:40]} Nf6 {[%emt 0:02:41]} 6. Ne5 {[%emt 0:02:08]} Nbd7 {[%emt 0:02:51]} 7. Nxc4 {[%emt 0:01:37]} Be7 {[%emt 0:01:08]} 8. O-O {[%emt 0:01:38]} O-O {[%emt 0:01:08]} 9. Nc3 {[%emt 0:02:42]} Nb6 {[%emt 0:05:09]} 10. Ne5 {[%emt 0:04:24]} a6 {[%emt 0:10:19]} 11. Be3 {[%emt 0:02:38]} Nbd5 {[%emt 0:01:25]} 12. Nxd5 {[%emt 0:00:58]} Nxd5 {[%emt 0:03:54]} 13. Bd2 {[%emt 0:00:14]} Bd7 {[%emt 0:03:19]} 14. e4 {[%emt 0:01:21]} Nf6 {[%emt 0:00:30]} 15. Bc3 {[%emt 0:03:00]} Rc8 {[%emt 0:02:35]} 16. Qb3 {[%emt 0:02:50]} b5 {[%emt 0:01:35]} 17. Bb4 {[%emt 0:03:27]} c5 {[%emt 0:59:05]} 1/2-1/2

[Event "XX Gran Hotel Bali-B 2023"]
[Site "Benidorm"]
[Date "2023.12.04"]
[Round "5.4"]
[White "Navarro Rico, Lluis"]
[Black "Martinez Herranz, Francisco Jose"]
[Result "1-0"]
[ECO "B08"]
[WhiteElo "1937"]
[BlackElo "1923"]
[Annotator "NA RC"]
[PlyCount "107"]
[EventDate "2023.12.02"]
[EventType "swiss"]
[EventCountry "ESP"]
[SourceTitle "playchess.com"]
[Source "ChessBase"]
[SourceQuality "1"]
[TimeControl "5400+30"]

1. Nf3 {[%emt 0:00:53]} d6 {[%emt 0:00:31]} 2. d4 {[%emt 0:00:20]} Nf6 {[%emt 0:00:19]} 3. Nc3 {[%emt 0:00:05]} g6 {[%emt 0:02:56]} 4. e4 {[%emt 0:00:07]} Bg7 {[%emt 0:00:06]} 5. Be2 {[%emt 0:00:19]} O-O {[%emt 0:00:30]} 6. O-O {[%emt 0:00:05]} c6 {[%emt 0:00:42]} 7. a4 {[%emt 0:00:09]} Qc7 {[%emt 0:01:13]} 8. h3 {[%emt 0:01:25]} e5 {[%emt 0:02:54]} 9. dxe5 {[%emt 0:00:05]} dxe5 {[%emt 0:00:03]} 10. Bc4 {[%emt 0:00:08]} h6 {[%emt 0:10:38]} 11. Be3 {[%emt 0:01:08]} b6 {[%emt 0:14:43]} 12. Qc1 {[%emt 0:08:05]} Kh7 {[%emt 0:01:38]} 13. a5 {[%emt 0:03:33]} b5 {[%emt 0:06:33]} 14. Bd3 {[%emt 0:00:40]} Bb7 {[%emt 0:07:07]} 15. Rd1 {[%emt 0:09:32]} a6 {[%emt 0:04:25]} 16. Bc5 {[%emt 0:02:02]} Re8 {[%emt 0:01:16]} 17. Bf1 {[%emt 0:01:41]} Nbd7 {[%emt 0:01:29]} 18. Bd6 {[%emt 0:00:09]} Qc8 {[%emt 0:00:34]} 19. Qe3 {[%emt 0:01:11]} Re6 {[%emt 0:03:15]} 20. b4 {[%emt 0:06:20]} Ne8 {[%emt 0:04:29]} 21. Bc5 {[%emt 0:00:43]} Nxc5 {[%emt 0:01:08]} 22. bxc5 {[%emt 0:03:24]} Qc7 {[%emt 0:02:10]} 23. Nd2 {[%emt 0:00:15]} Rd8 {[%emt 0:01:53]} 24. Nb3 {[%emt 0:00:30]} Re7 {[%emt 0:00:59]} 25. Rxd8 {[%emt 0:01:55]} Qxd8 {[%emt 0:00:02]} 26. Rd1 {[%emt 0:00:37]} Rd7 {[%emt 0:00:22]} 27. Rxd7 {[%emt 0:00:23]} Qxd7 {[%emt 0:00:01]} 28. Na2 {[%emt 0:00:40]} Nc7 {[%emt 0:05:04]} 29. Nb4 {[%emt 0:02:43]} Bf8 {[%emt 0:02:01]} 30. Qg3 {[%emt 0:03:16]} Bg7 {[%emt 0:05:19]} 31. Nd3 {[%emt 0:05:24]} Qe7 {[%emt 0:02:22]} 32. f3 {[%emt 0:03:39]} Bc8 {[%emt 0:02:14]} 33. Nb4 {[%emt 0:01:06]} Bb7 {[%emt 0:02:51]} 34. Qe1 {[%emt 0:00:32]} Ne6 {[%emt 0:01:09]} 35. Qc3 {[%emt 0:01:37]} Nd4 {[%emt 0:01:31]} 36. Nd3 {[%emt 0:01:11]} Qg5 {[%emt 0:01:41]} 37. Kf2 {[%emt 0:02:30]} Qh4+ {[%emt 0:01:13]} 38. g3 {[%emt 0:00:33]} Qf6 {[%emt 0:01:27]} 39. Nxd4 {[%emt 0:00:48]} exd4 {[%emt 0:00:01]} 40. Qd2 {[%emt 0:00:51]} g5 {[%emt 0:02:49]} 41. Bg2 {[%emt 0:05:39]} Bc8 {[%emt 0:01:12]} 42. Kg1 {[%emt 0:01:29]} Qe7 {[%emt 0:01:24]} 43. f4 {[%emt 0:00:45]} Kg8 {[%emt 0:04:26]} 44. e5 {[%emt 0:01:37]} Bf5 {[%emt 0:00:20]} 45. Qb4 {[%emt 0:01:42]} Qd7 {[%emt 0:00:49]} 46. Qd2 {[%emt 0:06:50]} Bxh3 {[%emt 0:00:38]} 47. fxg5 {[%emt 0:00:25]} Bxg2 {[%emt 0:00:52]} 48. gxh6 {[%emt 0:01:26]} Bd5 {[%emt 0:01:49]} 49. Qg5 {[%emt 0:00:21]} f5 {[%emt 0:00:41]} 50. exf6 {[%emt 0:00:33]} Qf7 {[%emt 0:00:37]} 51. hxg7 {[%emt 0:00:56]} Qe6 {[%emt 0:00:38]} 52. Ne5 {[%emt 0:02:40]} Qh3 {[%emt 0:00:25]} 53. f7+ {[%emt 0:00:08]} Bxf7 {[%emt 0:00:03]} 54. Nxf7 {[%emt 0:00:12]} 1-0